[Event "DMP-III LIGA Senior PK 2020"]
[Site "Bystre"]
[Date "2020.07.08"]
[Round "1.30"]
[White "Polak, Sylwia"]
[Black "Zgoda, Aleksandra"]
[Result "*"]
[ECO "A52"]
[WhiteElo "1614"]
[BlackElo "1203"]
[Annotator "NA RC"]
[PlyCount "49"]
[EventDate "2020.07.05"]
[EventType "team-tourn"]
[EventCountry "POL"]
[SourceTitle "playchess.com"]
[Source "ChessBase"]
[SourceQuality "1"]
[TimeControl "5400+30"]

1. d4 {[%emt 0:00:00]} Nf6 {[%emt 0:00:00]} 2. c4 {[%emt 0:00:00]} e5 {[%emt 0:00:00]} 3. dxe5 {[%emt 0:00:00]} Ng4 {[%emt 0:00:12]} 4. e3 {[%emt 0:00:00]} Nxe5 {[%emt 0:00:22]} 5. Nh3 {[%emt 0:00:01]} Nbc6 {[%emt 0:00:57]} 6. Nc3 {[%emt 0:01:40]} Be7 {[%emt 0:01:45]} 7. Be2 {[%emt 0:00:57]} d6 {[%emt 0:03:26]} 8. Nf4 {[%emt 0:00:04]} O-O {[%emt 0:04:49]} 9. O-O {[%emt 0:00:08]} Be6 {[%emt 0:04:47]} 10. Nfd5 {[%emt 0:01:39]} a6 {[%emt 0:09:45]} 11. b3 {[%emt 0:04:54]} Nb8 {[%emt 0:12:49]} 12. f4 {[%emt 0:04:16]} Ned7 {[%emt 0:05:55]} 13. Nxe7+ {[%emt 0:05:04]} Qxe7 {[%emt 0:01:30]} 14. f5 {[%emt 0:00:23]} Qf6 {[%emt 0:04:29]} 15. Qd4 {[%emt 0:00:35]} Ne5 {[%emt 0:08:26]} 16. fxe6 {[%emt 0:00:43]} Qxe6 {[%emt 0:02:48]} 17. Nd5 {[%emt 0:01:55]} Qd7 {[%emt 0:02:49]} 18. Bb2 {[%emt 0:01:09]} Nbc6 {[%emt 0:01:38]} 19. Qh4 {[%emt 0:03:10]} Rfe8 {[%emt 0:01:56]} 20. Bd3 {[%emt 0:06:10]} h6 {[%emt 0:06:11]} 21. Bf5 {[%emt 0:01:34]} Qd8 {[%emt 0:02:10]} 22. Qxd8 {[%emt 0:00:30]} Raxd8 {[%emt 0:00:44]} 23. Nxc7 {[%emt 0:00:20]} Re7 {[%emt 0:01:23]} 24. Nd5 {[%emt 0:00:05]} Ree8 {[%emt 0:00:17]} 25. Rad1 {[%emt 0:01:43]} *

[Event "DMP-III LIGA Senior PK 2020"]
[Site "Bystre"]
[Date "2020.07.09"]
[Round "2.1"]
[White "Stefanski, Robert"]
[Black "Miasik, Adrian"]
[Result "0-1"]
[ECO "A00"]
[WhiteElo "1649"]
[BlackElo "1881"]
[Annotator "NA"]
[PlyCount "72"]
[EventDate "2020.07.05"]
[EventType "team-tourn"]
[EventCountry "POL"]
[SourceTitle "playchess.com"]
[Source "ChessBase"]
[SourceQuality "1"]
[TimeControl "5400+30"]

1. e3 {[%emt 0:00:00]} d5 {[%emt 0:00:04]} 2. d4 {[%emt 0:00:00]} e6 {[%emt 0:00:22]} 3. c4 {[%emt 0:00:00]} c5 {[%emt 0:00:09]} 4. Nf3 {[%emt 0:00:22]} Nf6 {[%emt 0:00:35]} 5. Nc3 {[%emt 0:02:11]} dxc4 {[%emt 0:03:08]} 6. Bxc4 {[%emt 0:00:10]} a6 {[%emt 0:00:53]} 7. a4 {[%emt 0:06:04]} Nc6 {[%emt 0:06:54]} 8. O-O {[%emt 0:02:02]} Be7 {[%emt 0:04:38]} 9. d5 {[%emt 0:06:14]} exd5 {[%emt 0:02:35]} 10. Nxd5 {[%emt 0:00:12]} O-O {[%emt 0:01:08]} 11. Nxe7+ {[%emt 0:12:16]} Qxe7 {[%emt 0:00:27]} 12. Qe2 {[%emt 0:01:40]} Bg4 {[%emt 0:08:44]} 13. Bd2 {[%emt 0:09:19]} Ne4 {[%emt 0:05:23]} 14. Rad1 {[%emt 0:07:11]} Rad8 {[%emt 0:10:34]} 15. h3 {[%emt 0:04:50]} Bh5 {[%emt 0:17:21]} 16. g4 {[%emt 0:03:02]} Bg6 {[%emt 0:00:10]} 17. Bc1 {[%emt 0:00:55]} h5 {[%emt 0:03:32]} 18. Nd2 $2 {[%emt 0:04:01]} (18. Rxd8 $17 Rxd8 19. Rd1) 18... Ne5 $19 {[%emt 0:04:38]} 19. Nxe4 {[%emt 0:03:33]} Bxe4 {[%emt 0:02:03]} 20. f4 {[%emt 0:06:10]} Rxd1 {[%emt 0:01:15]} 21. fxe5 {[%emt 0:04:03]} Rxf1+ {[%emt 0:00:23]} 22. Qxf1 {[%emt 0:04:28]} Qxe5 {[%emt 0:02:24]} 23. Qf4 {[%emt 0:01:29]} Qe7 {[%emt 0:03:40]} 24. gxh5 {[%emt 0:01:42]} Rd8 {[%emt 0:00:59]} 25. Be2 {[%emt 0:01:54]} Rd5 {[%emt 0:03:01]} 26. Bg4 {[%emt 0:01:48]} Qe5 {[%emt 0:05:04]} 27. Qf2 {[%emt 0:03:35]} b5 {[%emt 0:01:02]} 28. axb5 {[%emt 0:02:32]} axb5 {[%emt 0:00:07]} 29. Qf4 {[%emt 0:00:54]} b4 {[%emt 0:01:35]} 30. Kf2 {[%emt 0:01:35]} Qxf4+ {[%emt 0:03:06]} 31. exf4 {[%emt 0:00:02]} Rd3 {[%emt 0:00:27]} 32. Be3 {[%emt 0:00:52]} c4 {[%emt 0:01:22]} 33. Be2 {[%emt 0:00:53]} Rb3 {[%emt 0:00:41]} 34. Bd4 {[%emt 0:04:59]} c3 {[%emt 0:00:49]} 35. bxc3 {[%emt 0:00:37]} bxc3 {[%emt 0:00:05]} 36. Ke3 {[%emt 0:01:11]} c2+ 0-1

[Event "DMP-III LIGA Senior PK 2020"]
[Site "Bystre"]
[Date "2020.07.09"]
[Round "2.2"]
[White "Ciasnocha, Michal"]
[Black "Socha, Kamil"]
[Result "1-0"]
[ECO "E18"]
[WhiteElo "1795"]
[BlackElo "1817"]
[Annotator "NA"]
[PlyCount "79"]
[EventDate "2020.07.05"]
[EventType "team-tourn"]
[EventCountry "POL"]
[SourceTitle "playchess.com"]
[Source "ChessBase"]
[SourceQuality "1"]
[TimeControl "5400+30"]

1. d4 {[%emt 0:00:00]} Nf6 {[%emt 0:03:29]} 2. Nf3 {[%emt 0:00:09]} e6 {[%emt 0:01:17]} 3. g3 {[%emt 0:01:09]} b6 {[%emt 0:00:37]} 4. Bg2 {[%emt 0:00:37]} Bb7 {[%emt 0:00:29]} 5. O-O {[%emt 0:00:19]} Be7 {[%emt 0:00:33]} 6. c4 {[%emt 0:02:31]} O-O {[%emt 0:00:36]} 7. Nc3 {[%emt 0:00:53]} Ne4 {[%emt 0:00:45]} 8. Nxe4 {[%emt 0:04:19]} Bxe4 {[%emt 0:00:09]} 9. Nh4 {[%emt 0:03:28]} Bxg2 {[%emt 0:00:40]} 10. Nxg2 {[%emt 0:00:04]} d6 {[%emt 0:00:31]} 11. e4 {[%emt 0:02:50]} c5 {[%emt 0:02:44]} 12. d5 {[%emt 0:00:51]} e5 {[%emt 0:04:14] [#]} 13. h4 $146 {[%emt 0:04:46] E18: Queen's Indian: Old Main Line (4 g3 Bb7 5 Bg2 Be7 6 0-0 0-0 7 Nc3).} ({Predecessor:} 13. Ne3 Bg5 14. Qh5 Bxe3 15. fxe3 Nd7 16. Bd2 a6 17. Rf3 g6 18. Qh6 Nf6 19. Qh4 Nh5 20. Qxd8 Rfxd8 {½-½ (49) Li,Z (2143)-Gardner,R (2198) Edmonton 2007}) 13... Nd7 {[%emt 0:02:13]} 14. Ne3 {[%emt 0:02:15]} Nf6 {[%emt 0:04:10]} 15. Qf3 {[%emt 0:04:50]} h5 {[%emt 0:07:10]} 16. Nf5 {[%emt 0:08:45]} Ng4 {[%emt 0:01:35]} 17. Qd3 {[%emt 0:13:22]} g6 {[%emt 0:05:05]} 18. Nxe7+ {[%emt 0:01:40]} Qxe7 {[%emt 0:00:13]} 19. f3 {[%emt 0:00:32]} Nf6 {[%emt 0:00:15]} 20. Bg5 {[%emt 0:00:30]} Kg7 {[%emt 0:01:38] [#]} 21. f4 $1 {[%emt 0:02:05]} Qd7 {[%emt 0:20:28]} 22. Bxf6+ {[%emt 0:11:38]} Kxf6 {[%emt 0:00:10]} 23. fxe5+ {[%emt 0:00:07]} Kg7 {[%emt 0:00:16]} 24. exd6 {[%emt 0:04:01]} Qxd6 {[%emt 0:01:03]} 25. Rf4 {[%emt 0:02:52]} Rfe8 {[%emt 0:02:10]} 26. Raf1 $18 {[%emt 0:01:00]} f6 {[%emt 0:05:57]} 27. Qf3 {[%emt 0:05:09]} Rf8 {[%emt 0:00:46]} 28. g4 {[%emt 0:03:53]} hxg4 {[%emt 0:01:03]} 29. Rxg4 {[%emt 0:01:38]} Rh8 {[%emt 0:01:37]} 30. Qf5 {[%emt 0:04:11]} Rh6 {[%emt 0:09:25]} 31. h5 {[%emt 0:01:29]} g5 {[%emt 0:02:00]} 32. e5 {[%emt 0:00:38]} Qxe5 {[%emt 0:01:10]} 33. Rxg5+ {[%emt 0:01:13]} Kh8 {[%emt 0:02:26]} 34. Qxe5 {[%emt 0:00:16]} fxe5 {[%emt 0:00:08]} 35. Rxe5 {[%emt 0:00:17]} Rg8+ {[%emt 0:01:16]} 36. Kf2 {[%emt 0:02:11]} Rh7 {[%emt 0:01:43]} 37. Ke3 {[%emt 0:01:09]} Rhg7 {[%emt 0:01:32]} 38. d6 {[%emt 0:03:16]} Rd7 {[%emt 0:03:05]} 39. Rf6 {[%emt 0:00:42]} Rgd8 {[%emt 0:01:23]} 40. Ree6 {[%emt 0:00:24]} 1-0

[Event "DMP-III LIGA Senior PK 2020"]
[Site "Bystre"]
[Date "2020.07.09"]
[Round "2.3"]
[White "Stefanski, Adam"]
[Black "Babiarz, Arkadiusz"]
[Result "1/2-1/2"]
[ECO "D33"]
[WhiteElo "1387"]
[BlackElo "1840"]
[Annotator "NA"]
[PlyCount "74"]
[EventDate "2020.07.05"]
[EventType "team-tourn"]
[EventCountry "POL"]
[SourceTitle "playchess.com"]
[Source "ChessBase"]
[SourceQuality "1"]
[TimeControl "5400+30"]

1. c4 {[%emt 0:03:13]} c5 {[%emt 0:00:08]} 2. Nc3 {[%emt 0:00:09]} e6 {[%emt 0:00:07]} 3. Nf3 {[%emt 0:00:40]} Nf6 {[%emt 0:00:13]} 4. g3 {[%emt 0:01:03]} d5 {[%emt 0:03:45]} 5. cxd5 {[%emt 0:00:49]} exd5 {[%emt 0:00:09]} 6. d4 $1 {[%emt 0:00:33]} Nc6 {[%emt 0:01:33]} 7. Bg2 {[%emt 0:01:04]} h6 {[%emt 0:02:08]} 8. O-O {[%emt 0:01:36]} Be6 {[%emt 0:00:48]} 9. Bf4 {[%emt 0:04:49]} Rc8 {[%emt 0:05:30]} 10. Na4 {[%emt 0:24:15]} c4 {[%emt 0:03:24]} 11. Nc3 {[%emt 0:03:45]} Bd6 {[%emt 0:03:16]} 12. Ne5 {[%emt 0:11:30]} g5 {[%emt 0:07:35]} 13. Nxc6 {[%emt 0:01:47]} bxc6 {[%emt 0:00:11]} 14. Bxd6 {[%emt 0:04:40]} Qxd6 {[%emt 0:00:05]} 15. e4 {[%emt 0:00:37]} dxe4 {[%emt 0:05:49]} 16. Nxe4 $11 {[%emt 0:12:42]} Nxe4 {[%emt 0:02:47]} 17. Bxe4 {[%emt 0:01:52]} O-O {[%emt 0:00:16]} 18. Qd2 {[%emt 0:17:44]} f5 {[%emt 0:15:12]} 19. Bf3 {[%emt 0:00:55]} f4 {[%emt 0:00:52]} 20. g4 {[%emt 0:03:48]} Bd5 {[%emt 0:07:10]} 21. Bxd5+ {[%emt 0:01:38]} Qxd5 {[%emt 0:00:14]} 22. Rfe1 {[%emt 0:00:47]} Qf3 {[%emt 0:04:47]} 23. Qe2 {[%emt 0:00:08]} Qxe2 {[%emt 0:00:07]} 24. Rxe2 {[%emt 0:00:01]} Rfe8 {[%emt 0:02:46]} 25. Rae1 {[%emt 0:00:20]} Rxe2 {[%emt 0:03:06]} 26. Rxe2 {[%emt 0:00:01]} Rd8 {[%emt 0:00:06]} 27. Re6 {[%emt 0:01:31]} Rxd4 {[%emt 0:00:17]} 28. Rxc6 {[%emt 0:01:20]} f3 {[%emt 0:00:13]} 29. h3 {[%emt 0:00:06]} Rd1+ {[%emt 0:10:22]} 30. Kh2 {[%emt 0:00:01]} Rd2 {[%emt 0:00:07]} 31. Kg3 {[%emt 0:00:15]} Rxb2 {[%emt 0:00:09]} 32. Rxc4 {[%emt 0:01:27]} Rxa2 {[%emt 0:00:07]} 33. Rc7 {[%emt 0:00:45]} a5 {[%emt 0:00:51]} 34. Ra7 {[%emt 0:00:30]} Ra3 {[%emt 0:01:09]} 35. h4 {[%emt 0:00:34]} gxh4+ {[%emt 0:08:14]} 36. Kxh4 {[%emt 0:00:09]} Ra4 {[%emt 0:05:33]} 37. Kg3 {[%emt 0:00:23]} Ra3 {[%emt 0:00:09]} 1/2-1/2

[Event "DMP-III LIGA Senior PK 2020"]
[Site "Bystre"]
[Date "2020.07.09"]
[Round "2.4"]
[White "Ziemniak, Piotr"]
[Black "Korys, Dawid"]
[Result "1/2-1/2"]
[ECO "B02"]
[WhiteElo "1791"]
[BlackElo "1343"]
[Annotator "NA"]
[PlyCount "34"]
[EventDate "2020.07.05"]
[EventType "team-tourn"]
[EventCountry "POL"]
[SourceTitle "playchess.com"]
[Source "ChessBase"]
[SourceQuality "1"]
[TimeControl "5400+30"]

1. e4 {[%emt 0:00:00]} Nf6 {[%emt 0:00:00]} 2. Nc3 {[%emt 0:01:16]} e6 {[%emt 0:00:23]} 3. g3 {[%emt 0:02:03]} Bb4 {[%emt 0:00:18]} 4. Bg2 {[%emt 0:00:06]} Bxc3 {[%emt 0:02:10]} 5. bxc3 {[%emt 0:00:07]} d5 {[%emt 0:00:47]} 6. e5 {[%emt 0:02:18]} Nfd7 {[%emt 0:00:26]} 7. d4 {[%emt 0:00:27]} O-O {[%emt 0:00:10]} 8. Nf3 {[%emt 0:02:21]} f6 {[%emt 0:02:15]} 9. exf6 {[%emt 0:03:04]} Nxf6 {[%emt 0:00:06]} 10. Ba3 {[%emt 0:02:10]} Re8 {[%emt 0:00:33]} 11. O-O {[%emt 0:01:20]} Nbd7 {[%emt 0:01:41]} 12. Re1 {[%emt 0:01:12]} Nb6 {[%emt 0:02:19]} 13. Ne5 {[%emt 0:11:09]} Nfd7 {[%emt 0:02:00]} 14. Nd3 {[%emt 0:01:28]} Nc4 {[%emt 0:00:33]} 15. Bc1 {[%emt 0:00:47]} c6 {[%emt 0:01:59]} 16. Qh5 {[%emt 0:23:22]} Nf6 {[%emt 0:02:00]} 17. Qh4 {[%emt 0:10:44]} Qa5 {[%emt 0:16:18]} 1/2-1/2

[Event "DMP-III LIGA Senior PK 2020"]
[Site "Bystre"]
[Date "2020.07.09"]
[Round "2.5"]
[White "Medrygal, Rafal"]
[Black "Wozniak, Grzegorz"]
[Result "1-0"]
[ECO "B30"]
[WhiteElo "1258"]
[BlackElo "1608"]
[Annotator "NA"]
[PlyCount "103"]
[EventDate "2020.07.05"]
[EventType "team-tourn"]
[EventCountry "POL"]
[SourceTitle "playchess.com"]
[Source "ChessBase"]
[SourceQuality "1"]
[TimeControl "5400+30"]

1. e4 {[%emt 0:00:00]} c5 {[%emt 0:00:35]} 2. Nf3 {[%emt 0:00:00]} Nc6 {[%emt 0:00:12]} 3. c3 {[%emt 0:00:22]} e6 {[%emt 0:00:39]} 4. d4 {[%emt 0:01:10]} d5 {[%emt 0:00:10]} 5. exd5 {[%emt 0:01:51]} Qxd5 {[%emt 0:02:52]} 6. Bd3 {[%emt 0:02:47]} Nf6 {[%emt 0:03:28]} 7. Be3 {[%emt 0:03:18]} cxd4 {[%emt 0:01:35]} 8. Nxd4 {[%emt 0:00:59]} Qxg2 {[%emt 0:09:21]} 9. Qf3 {[%emt 0:03:50]} Qxf3 {[%emt 0:01:30]} 10. Nxf3 {[%emt 0:00:08]} a6 {[%emt 0:02:15]} 11. Nbd2 {[%emt 0:01:14]} Nd5 {[%emt 0:06:20]} 12. Bg5 {[%emt 0:02:09]} h6 {[%emt 0:05:45]} 13. Bh4 {[%emt 0:00:37]} f5 {[%emt 0:01:26]} 14. c4 {[%emt 0:02:17]} Nf4 {[%emt 0:05:21]} 15. Bf1 {[%emt 0:03:02]} Ng6 {[%emt 0:08:13]} 16. O-O-O {[%emt 0:04:24]} Bc5 {[%emt 0:04:30]} 17. Rg1 {[%emt 0:01:55]} Nxh4 {[%emt 0:01:12]} 18. Nxh4 {[%emt 0:00:08]} g5 {[%emt 0:00:33]} 19. Nhf3 {[%emt 0:01:30]} Bxf2 {[%emt 0:01:38]} 20. Rg2 {[%emt 0:00:11]} Be3 {[%emt 0:01:46]} 21. Kb1 {[%emt 0:01:57]} g4 {[%emt 0:04:13]} 22. Re2 {[%emt 0:03:49]} Bf4 {[%emt 0:02:28]} 23. Nh4 {[%emt 0:01:35]} Bg5 {[%emt 0:04:24]} 24. Nxf5 {[%emt 0:01:03]} Be7 {[%emt 0:02:24]} 25. Ng7+ {[%emt 0:01:15]} Kf7 {[%emt 0:00:35]} 26. Nh5 {[%emt 0:00:30]} e5 {[%emt 0:02:36]} 27. Rf2+ {[%emt 0:01:03]} Kg6 {[%emt 0:00:38]} 28. Ng3 {[%emt 0:00:40]} h5 {[%emt 0:01:17]} 29. Bd3+ {[%emt 0:00:52]} Kg7 {[%emt 0:00:48]} 30. Rdf1 {[%emt 0:01:58]} Be6 {[%emt 0:02:07]} 31. Bf5 {[%emt 0:09:44]} Bf7 {[%emt 0:02:23]} 32. Be4 {[%emt 0:02:14]} Bg6 {[%emt 0:01:51]} 33. Nf5+ {[%emt 0:00:48]} Bxf5 {[%emt 0:00:47]} 34. Rxf5 {[%emt 0:00:34]} Raf8 {[%emt 0:01:02]} 35. Bxc6 {[%emt 0:01:08]} bxc6 {[%emt 0:00:54]} 36. Rxe5 {[%emt 0:00:37]} Rxf1+ {[%emt 0:00:16]} 37. Nxf1 {[%emt 0:00:07]} Bf6 {[%emt 0:02:16]} 38. Re6 {[%emt 0:00:57]} Kf7 {[%emt 0:05:50]} 39. Rxc6 {[%emt 0:02:09]} Re8 {[%emt 0:01:49]} 40. Ng3 {[%emt 0:01:36]} h4 {[%emt 0:00:50]} 41. Nf5 {[%emt 0:00:38]} Re1+ {[%emt 0:00:26]} 42. Kc2 {[%emt 0:00:45]} Re2+ {[%emt 0:00:44]} 43. Kd3 {[%emt 0:00:45]} Rxh2 {[%emt 0:01:23]} 44. Nh6+ {[%emt 0:01:02]} Kg7 {[%emt 0:00:55]} 45. Nxg4 {[%emt 0:01:54]} Rh3+ {[%emt 0:00:07]} 46. Kc2 {[%emt 0:01:25]} Rf3 {[%emt 0:01:13]} 47. Rxa6 {[%emt 0:02:49]} h3 {[%emt 0:00:36]} 48. Ra3 {[%emt 0:11:02]} Rf4 {[%emt 0:00:58]} 49. Nxf6 {[%emt 0:05:44]} Rxc4+ {[%emt 0:00:14]} 50. Kd2 {[%emt 0:00:58]} Rh4 {[%emt 0:00:09]} 51. Ng4 {[%emt 0:00:26]} Rxg4 {[%emt 0:01:17]} 52. Rxh3 {[%emt 0:00:08]} 1-0

[Event "DMP-III LIGA Senior PK 2020"]
[Site "Bystre"]
[Date "2020.07.09"]
[Round "2.6"]
[White "Polak, Sylwia"]
[Black "Trybowska, Anna"]
[Result "0-1"]
[ECO "A59"]
[WhiteElo "1614"]
[BlackElo "1583"]
[Annotator "NA"]
[PlyCount "54"]
[EventDate "2020.07.05"]
[EventType "team-tourn"]
[EventCountry "POL"]
[SourceTitle "playchess.com"]
[Source "ChessBase"]
[SourceQuality "1"]
[TimeControl "5400+30"]

1. d4 {[%emt 0:00:00]} Nf6 {[%emt 0:00:00]} 2. c4 {[%emt 0:00:00]} c5 {[%emt 0:00:00]} 3. d5 {[%emt 0:00:00]} b5 {[%emt 0:00:00]} 4. cxb5 {[%emt 0:00:00]} a6 {[%emt 0:00:05]} 5. bxa6 {[%emt 0:00:00]} Bxa6 {[%emt 0:00:04]} 6. Nc3 {[%emt 0:00:11]} d6 {[%emt 0:00:15]} 7. e4 {[%emt 0:00:07]} Bxf1 {[%emt 0:00:18]} 8. Kxf1 {[%emt 0:00:05]} g6 {[%emt 0:00:30]} 9. Nf3 {[%emt 0:00:11]} Bg7 {[%emt 0:00:13]} 10. g3 {[%emt 0:00:06]} O-O {[%emt 0:00:51]} 11. Kg2 {[%emt 0:00:08]} Na6 {[%emt 0:00:11]} 12. Qe2 {[%emt 0:01:29]} Re8 {[%emt 0:01:15]} 13. Re1 {[%emt 0:11:18]} Qb6 {[%emt 0:01:10]} 14. Nd2 {[%emt 0:02:08]} Nb4 {[%emt 0:03:12]} 15. Nc4 {[%emt 0:02:08]} Qa6 {[%emt 0:00:23]} 16. a4 {[%emt 0:02:03]} Reb8 {[%emt 0:04:53]} 17. Bg5 {[%emt 0:02:41]} Nc2 {[%emt 0:01:14]} 18. Qxc2 {[%emt 0:02:55]} Qxc4 {[%emt 0:00:28]} 19. Ra3 {[%emt 0:14:20]} h6 {[%emt 0:04:34]} 20. Bd2 {[%emt 0:01:52]} Ng4 {[%emt 0:03:28]} 21. b3 {[%emt 0:07:07]} Qd4 {[%emt 0:04:54]} 22. Nd1 {[%emt 0:01:14]} Ne5 {[%emt 0:04:08]} 23. f4 {[%emt 0:17:04]} Nd3 {[%emt 0:04:01]} 24. Re3 {[%emt 0:02:10]} Nb4 {[%emt 0:03:32]} 25. Qc3 {[%emt 0:05:41]} Qxc3 {[%emt 0:02:02]} 26. Rxc3 {[%emt 0:01:25]} Bxc3 {[%emt 0:00:06]} 27. Nxc3 {[%emt 0:03:07]} Nc2 {[%emt 0:01:52]} 0-1

[Event "DMP-III LIGA Senior PK 2020"]
[Site "Bystre"]
[Date "2020.07.09"]
[Round "2.8"]
[White "Smusz, Kamil"]
[Black "Baniak, Lukasz"]
[Result "0-1"]
[ECO "A45"]
[WhiteElo "1922"]
[BlackElo "1939"]
[Annotator "ChessBase"]
[PlyCount "66"]
[EventDate "2020.07.05"]
[EventType "team-tourn"]
[EventCountry "POL"]
[SourceTitle "playchess.com"]
[Source "ChessBase"]
[SourceQuality "1"]
[TimeControl "5400+30"]

1. d4 {[%emt 0:02:39]} Nf6 {[%emt 0:00:00]} 2. Bf4 {[%emt 0:00:02]} c5 {[%emt 0:02:26]} 3. d5 {[%emt 0:00:10]} d6 {[%emt 0:00:05]} 4. Nc3 {[%emt 0:00:08]} Na6 {[%emt 0:00:39]} 5. e4 {[%emt 0:00:16]} Nc7 {[%emt 0:00:06]} 6. a4 {[%emt 0:07:28]} g6 {[%emt 0:01:39]} 7. Be2 {[%emt 0:04:50]} Bg7 {[%emt 0:02:32]} 8. Qd2 {[%emt 0:03:07]} O-O {[%emt 0:00:15]} 9. Bh6 {[%emt 0:02:44]} Rb8 {[%emt 0:00:57]} 10. h4 {[%emt 0:12:34]} a6 {[%emt 0:43:19]} 11. h5 {[%emt 0:18:31]} b5 {[%emt 0:00:27]} 12. hxg6 {[%emt 0:04:54]} fxg6 {[%emt 0:00:07]} 13. Bxg7 {[%emt 0:00:15]} Kxg7 {[%emt 0:00:05]} 14. Qh6+ {[%emt 0:00:53]} Kg8 {[%emt 0:00:17]} 15. Nf3 {[%emt 0:06:29]} Rf7 {[%emt 0:00:32]} 16. Ng5 {[%emt 0:07:35]} Rg7 {[%emt 0:00:20]} 17. Nd1 {[%emt 0:08:18]} e6 {[%emt 0:02:55]} 18. Ne3 {[%emt 0:06:04]} exd5 {[%emt 0:06:48]} 19. exd5 {[%emt 0:00:39]} Qe7 {[%emt 0:04:48]} 20. axb5 {[%emt 0:07:12]} axb5 {[%emt 0:00:22]} 21. Ra7 {[%emt 0:02:33]} c4 {[%emt 0:06:31]} 22. Nf3 {[%emt 0:01:02]} Rb7 {[%emt 0:01:06]} 23. Rxb7 {[%emt 0:01:59]} Bxb7 {[%emt 0:00:05]} 24. Qf4 {[%emt 0:00:58]} Ncxd5 {[%emt 0:01:41]} 25. Qd4 {[%emt 0:00:04]} Nxe3 {[%emt 0:00:20]} 26. Qxe3 {[%emt 0:00:32]} Qxe3 {[%emt 0:00:45]} 27. fxe3 {[%emt 0:00:01]} Re7 {[%emt 0:00:08]} 28. Kd2 {[%emt 0:00:20]} Ne4+ {[%emt 0:02:38]} 29. Ke1 {[%emt 0:00:25]} Ng3 {[%emt 0:00:12]} 30. Rh3 {[%emt 0:00:08]} Nf5 {[%emt 0:00:07]} 31. Kf2 {[%emt 0:01:17]} Nxe3 {[%emt 0:00:09]} 32. Nd4 {[%emt 0:00:02]} Nxg2 {[%emt 0:00:20]} 33. Nxb5 {[%emt 0:00:27]} Rxe2+ {[%emt 0:00:05]} 0-1

[Event "DMP-III LIGA Senior PK 2020"]
[Site "Bystre"]
[Date "2020.07.09"]
[Round "2.9"]
[White "Biesiadecki, Adam"]
[Black "Kasperek, Rafal"]
[Result "1/2-1/2"]
[ECO "A41"]
[WhiteElo "1539"]
[BlackElo "1982"]
[Annotator "ChessBase"]
[PlyCount "89"]
[EventDate "2020.07.05"]
[EventType "team-tourn"]
[EventCountry "POL"]
[SourceTitle "playchess.com"]
[Source "ChessBase"]
[SourceQuality "1"]
[TimeControl "5400+30"]

1. d4 {[%emt 0:00:00]} d6 {[%emt 0:00:00]} 2. c4 {[%emt 0:00:00]} e5 {[%emt 0:00:00]} 3. e3 {[%emt 0:00:00]} Nd7 {[%emt 0:00:18]} 4. Nc3 {[%emt 0:00:14]} Ngf6 {[%emt 0:00:16]} 5. Nf3 {[%emt 0:00:23]} g6 {[%emt 0:00:13]} 6. Be2 {[%emt 0:00:57]} Bg7 {[%emt 0:00:04]} 7. h4 {[%emt 0:00:11]} c6 {[%emt 0:05:15]} 8. d5 {[%emt 0:09:23]} Qc7 {[%emt 0:01:36]} 9. e4 {[%emt 0:00:59]} a6 {[%emt 0:19:50]} 10. Bd2 {[%emt 0:08:58]} Nc5 {[%emt 0:21:26]} 11. Qc2 {[%emt 0:03:39]} cxd5 {[%emt 0:03:24]} 12. Nxd5 {[%emt 0:02:17]} Nxd5 {[%emt 0:01:44]} 13. cxd5 {[%emt 0:00:23]} f5 {[%emt 0:04:01]} 14. b4 {[%emt 0:01:27]} Ne6 {[%emt 0:07:38]} 15. Qxc7 Nxc7 {[%emt 0:01:34]} 16. Rc1 {[%emt 0:10:09]} Kd7 {[%emt 0:00:52]} 17. exf5 {[%emt 0:02:34]} b5 {[%emt 0:05:30]} 18. Bd3 {[%emt 0:00:30]} Nxd5 {[%emt 0:00:30]} 19. O-O {[%emt 0:02:43]} Bb7 {[%emt 0:04:24]} 20. fxg6 {[%emt 0:01:31]} hxg6 {[%emt 0:01:25]} 21. Bxg6 {[%emt 0:00:26]} Ne7 {[%emt 0:00:26]} 22. h5 {[%emt 0:01:34]} Bxf3 {[%emt 0:02:44]} 23. gxf3 {[%emt 0:00:13]} Nxg6 {[%emt 0:00:16]} 24. hxg6 {[%emt 0:00:02]} Bh6 {[%emt 0:02:50]} 25. Bxh6 {[%emt 0:01:05]} Rxh6 {[%emt 0:00:04]} 26. Rfd1 {[%emt 0:00:19]} Rg8 {[%emt 0:00:06]} 27. Kf1 {[%emt 0:00:26]} Rh1+ {[%emt 0:13:50]} 28. Ke2 {[%emt 0:00:10]} Rxd1 {[%emt 0:00:03]} 29. Rxd1 {[%emt 0:00:10]} Rxg6 {[%emt 0:00:01]} 30. Ke3 {[%emt 0:02:09]} Rh6 {[%emt 0:01:57]} 31. Rg1 {[%emt 0:00:43]} Rh4 {[%emt 0:00:05]} 32. Rg4 {[%emt 0:00:14]} Rh1 {[%emt 0:00:04]} 33. Rg7+ {[%emt 0:00:25]} Ke6 {[%emt 0:00:12]} 34. Ra7 {[%emt 0:02:34]} Rb1 {[%emt 0:00:07]} 35. Rxa6 {[%emt 0:00:02]} Rxb4 {[%emt 0:00:04]} 36. Ra3 {[%emt 0:00:08]} Rb2 {[%emt 0:02:04]} 37. f4 {[%emt 0:04:04]} exf4+ {[%emt 0:00:12]} 38. Kxf4 {[%emt 0:00:01]} Rxf2+ {[%emt 0:00:06]} 39. Ke4 {[%emt 0:00:26]} Rb2 {[%emt 0:00:45]} 40. Ra6 {[%emt 0:00:28]} Rb4+ {[%emt 0:00:17]} 41. Kd3 {[%emt 0:00:42]} Kd5 {[%emt 0:00:18]} 42. Kc3 {[%emt 0:01:21]} Rc4+ {[%emt 0:00:27]} 43. Kb3 {[%emt 0:00:53]} Rh4 {[%emt 0:00:17]} 44. Ra8 {[%emt 0:01:27]} Kc5 {[%emt 0:02:40]} 45. Rc8+ {[%emt 0:00:16]} 1/2-1/2